bitfinex-derivatives/quotes_ETHF0:USTF0_20250421
["timestamp","ask_amount","ask_price","bid_price","bid_amount"]
[1745195175818,4.83316109,1599.9,1599.8,1.25025]
[1745195176023,4.83316109,1599.9,1599.8,2.11010846]
[1745195176217,37.84598905,1600.0,1599.9,1.25017]
[1745195176518,37.84598905,1600.0,1599.9,7.97452846]
[1745195176713,37.84598905,1600.0,1599.9,12.97220929]
[1745195176912,6.59203792,1600.0,1599.9,12.97220929]
[1745195177515,0.08312547,1600.2,1600.1,1.25002]
[1745195177716,0.08312547,1600.2,1600.1,5.31535929]
[1745195177913,0.08312547,1600.2,1600.1,4.06533929]
[1745195178118,0.08312547,1600.2,1600.1,4.8154]
[1745195178312,0.08312547,1600.2,1600.1,10.67139613]
[1745195178515,0.08312547,1600.2,1600.1,11.92141613]
[1745195179024,0.08312547,1600.2,1600.1,10.67139613]
[1745195179322,0.07450322,1600.3,1600.1,10.67139613]
[1745195179524,0.23037622,1600.4,1600.3,1.24986]
[1745195179724,0.09287538,1600.5,1600.3,9.45765613]
[1745195179919,0.09287538,1600.5,1600.4,2.61649613]
[1745195180313,0.09287538,1600.5,1600.4,7.61649613]
[1745195180617,0.09287538,1600.5,1600.4,8.86162564]
[1745195180923,6.60476636,1601.2,1600.9,1.24934]
[1745195181127,0.35756636,1601.2,1601.0,7.5788]
[1745195181314,0.0921619,1601.6,1601.4,1.249]
[1745195181518,29.92668722,1602.6,1601.4,1.249]
[1745195181519,32.97562227,1602.4,1602.2,1.24834]
[1745195181712,0.18177206,1603.0,1602.4,0.6248]
[1745195181917,0.18177206,1603.0,1602.8,3.2078]
[1745195182117,0.18177206,1603.0,1602.9,4.837]
[1745195182721,41.18742227,1603.0,1602.3,3.2078]
[1745195182923,22.97962227,1602.9,1602.6,3.2078]
[1745195183119,5.49402227,1602.7,1602.5,5.4718]
[1745195183316,20.3531,1602.8,1602.5,2.264]
[1745195183515,3.2078,1603.0,1602.5,7.353]
[1745195183829,22.58873082,1603.6,1603.0,3.2078]
[1745195184127,24.93535558,1604.1,1604.0,1.24698]
[1745195184322,24.93535558,1604.1,1604.0,3.2078]
[1745195184829,0.15903331,1604.5,1604.0,13.9208]
[1745195185030,27.55950454,1604.7,1604.6,1.24651]
[1745195185326,11.73444524,1604.7,1604.6,9.54331]
[1745195185521,11.73444524,1604.7,1604.6,3.2078]
[1745195185823,44.71406751,1604.7,1604.6,8.2968]
[1745195186029,42.92186751,1604.7,1604.1,3.2078]
[1745195186220,42.92186751,1604.7,1603.8,1.6758]
[1745195186221,4.24602227,1604.0,1603.8,0.1905]
[1745195186527,1.7244,1603.9,1603.6,3.2078]
[1745195186737,3.2078,1604.5,1603.8,3.2078]
[1745195186914,18.7336,1604.5,1604.1,3.2078]
[1745195187121,3.3575947,1604.9,1604.6,1.24647]
[1745195187315,18.8833947,1604.9,1604.7,5.327]
[1745195187519,18.8833947,1604.9,1604.2,8.27958976]
[1745195187520,4.7e-06,1604.9,1604.8,9.78116]
[1745195187930,4.7e-06,1604.9,1604.8,14.78116]
[1745195188221,3.2078,1605.5,1604.8,14.78116]
[1745195188222,9.89e-06,1605.2,1605.1,1.24612]
[1745195188415,9.89e-06,1605.2,1605.1,9.78092]
[1745195188617,18.73360989,1605.2,1604.9,6.10974]
[1745195188828,9.89e-06,1605.2,1605.1,3.2078]
[1745195189025,9.89e-06,1605.2,1604.9,4.8635]
[1745195189225,3.2078,1605.9,1605.0,8.5308]
[1745195189423,3.2078,1606.1,1605.9,1.2455]
[1745195189614,4.73e-06,1606.0,1605.9,6.5685]
[1745195189822,0.9961,1606.9,1606.0,3.2078]
[1745195189823,2.87635227,1606.9,1606.0,3.2078]
[1745195190120,18.7336,1606.9,1606.7,1.24484]
[1745195190319,2.87635227,1606.7,1606.5,5.829]
[1745195190619,2.87635227,1606.7,1606.1,7.5907371]
[1745195190620,18.7336,1606.9,1606.7,1.24488]
[1745195190823,2.0,1607.1,1606.8,3.2078]
[1745195191029,1.7623,1607.4,1607.0,3.2078]
[1745195191216,0.20176134,1607.5,1607.1,5.829]
[1745195191523,2.87635227,1607.2,1607.0,3.2078]
[1745195191729,0.20176134,1607.5,1607.4,1.24434]
[1745195191924,2.87635227,1607.1,1607.0,3.2078]
[1745195192125,2.264,1607.1,1607.0,10.27745]
[1745195192322,2.264,1607.1,1607.0,9.0328]
[1745195192523,2.264,1607.1,1607.0,10.27745]
[1745195192722,2.264,1607.1,1607.0,9.0328]
[1745195193024,2.264,1607.1,1606.5,3.2078]
[1745195193025,24.51506948,1607.1,1606.5,3.2078]
[1745195193226,2.87635227,1606.6,1606.5,3.2078]
[1745195193431,1.729,1607.0,1606.5,4.42633052]
[1745195193618,2.0,1607.4,1606.8,3.2078]
[1745195193824,3.2078,1608.5,1607.2,3.2078]
[1745195194127,3.2078,1608.5,1606.9,1.7199]
[1745195194128,1.36552436,1608.6,1608.3,3.2078]
[1745195194328,1.36552436,1608.6,1608.5,3.2078]
[1745195194523,0.20482856,1608.6,1608.5,3.2078]
[1745195195224,29.21022856,1608.6,1607.8,3.2078]
[1745195195427,20.4369,1608.5,1608.2,3.2078]
[1745195195832,2.26882856,1608.6,1608.5,1.24349]
[1745195196027,0.19181095,1609.0,1608.5,6.07]
[1745195196327,10.77961062,1608.6,1608.5,2.264]
[1745195196527,2.0,1608.6,1607.2,0.6224]
[1745195196726,1.7033,1608.5,1607.3,0.6224]
[1745195196928,0.19181095,1609.0,1608.7,1.24331]
[1745195197119,1.6033,1608.9,1608.8,4.45106]
[1745195197318,12.38291062,1608.9,1608.8,3.2078]
[1745195197524,1.6033,1608.9,1608.8,3.2078]
[1745195197930,9.88180358,1608.9,1608.8,3.2078]
[1745195198130,1.24333,1608.7,1608.5,3.2078]
[1745195198332,2.264,1608.9,1608.6,3.2078]
[1745195198530,2.264,1608.9,1608.7,3.2078]
[1745195198730,2.264,1608.9,1608.8,1.24326]
[1745195199029,2.264,1608.9,1608.8,2.91746]
[1745195199030,0.85918,1608.9,1608.8,2.91746]
[1745195199225,1.25448349,1610.1,1608.8,6.6742]
[1745195199422,4.46228349,1610.1,1609.5,3.2078]
[1745195199633,4.46228349,1610.1,1609.5,13.47506059]
[1745195199828,5.70456349,1610.1,1609.5,9.2738]
[1745195200021,4.46228349,1610.1,1609.5,9.2738]
[1745195200219,10.66777068,1609.7,1609.2,3.2078]
[1745195200525,2.0,1609.6,1609.3,3.2078]
[1745195200724,5.66777068,1609.7,1609.3,3.2078]
[1745195200925,3.2078,1609.5,1608.7,9.2708]
[1745195201131,1.24312,1609.0,1608.8,3.2078]
[1745195201335,1.24339,1608.7,1608.3,3.2078]
[1745195201531,4.9485,1608.9,1608.6,3.2078]
[1745195201725,4.9485,1608.9,1608.3,5.44487059]
[1745195201726,2.0506,1609.2,1608.8,3.2078]
[1745195201928,2.0506,1609.2,1609.0,3.2078]
[1745195202233,7.264,1609.2,1608.4,3.2078]
[1745195202431,4.264,1609.2,1608.6,3.2078]
[1745195202630,1.24327,1608.8,1608.4,3.2078]
[1745195202934,1.24345,1608.6,1608.2,3.2078]
[1745195203230,2.264,1608.6,1608.4,3.2078]
[1745195203435,2.264,1608.6,1608.5,1.24349]
[1745195203624,2.264,1608.6,1608.5,6.063]
[1745195203934,2.264,1608.6,1608.5,10.26426059]
[1745195204131,7.264,1608.6,1608.4,3.2078]
[1745195204332,1.24349,1608.5,1608.4,3.2078]
[1745195204532,7.264,1608.6,1608.4,3.2078]
[1745195204838,1.24349,1608.5,1608.4,3.2078]
[1745195205224,6.24349,1608.5,1608.4,3.2078]
[1745195206238,2.264,1608.5,1608.4,7.40906059]
[1745195206430,2.264,1608.5,1608.4,3.2078]
[1745195206831,3.50749,1608.5,1608.4,3.2078]
[1745195207027,7.264,1608.5,1608.2,5.695]
[1745195207232,1.24364,1608.3,1608.2,5.695]
[1745195207433,1.24364,1608.3,1608.2,2.4872]
[1745195207640,1.24366,1608.3,1608.0,3.2078]
[1745195207836,95.8199,1609.0,1608.0,3.2078]
[1745195207837,3.2078,1609.3,1608.2,3.2078]
[1745195208031,1.24318,1608.9,1608.8,3.2078]
[1745195208231,3.2078,1609.3,1608.8,3.2078]
[1745195208431,1.24282,1609.4,1609.0,3.2078]
[1745195208732,1.2429,1609.3,1609.0,3.2078]
[1745195208928,1.24278,1609.5,1609.0,3.2078]
[1745195209132,2.264,1609.3,1609.0,3.2078]
[1745195209430,3.50688,1609.3,1609.0,3.2078]
[1745195209635,2.264,1609.3,1609.0,3.2078]
[1745195209835,3.50687,1609.3,1609.0,3.2078]
[1745195210040,4.264,1609.3,1609.0,40.8]
[1745195210335,2.264,1609.3,1609.0,42.73726059]
[1745195210533,2.264,1609.3,1609.0,45.94506059]
[1745195210931,1.24303,1609.1,1609.0,40.8]
[1745195211127,1.2437,1608.3,1607.9,3.2078]
[1745195211336,8.059,1608.6,1608.0,3.2078]
[1745195211535,6.059,1608.6,1608.3,3.2078]
[1745195211739,1.24351,1608.5,1608.1,3.2078]
[1745195211934,1.7611,1608.5,1608.1,3.2078]
[1745195212133,5.26864,1608.5,1608.4,40.8]
[1745195212335,4.0251,1608.5,1608.4,40.8]
[1745195212536,4.0251,1608.5,1608.4,42.73726059]
[1745195212938,9.1158,1609.0,1608.4,42.73726059]
[1745195213138,1.7611,1608.7,1608.4,45.65670059]
[1745195213338,1.7611,1608.7,1608.5,3.2078]
[1745195213540,2.264,1609.0,1608.8,1.2432]
[1745195213739,2.264,1609.0,1608.8,3.2078]
[1745195213940,2.264,1609.0,1608.8,5.14506059]
[1745195214345,2.264,1609.0,1608.9,1.24318]
[1745195214540,0.19597068,1609.7,1608.9,1.6984]
[1745195214744,1.7621,1609.5,1609.1,3.2078]
[1745195214951,3.00489,1609.5,1609.4,40.8]
[1745195215247,5.26889,1609.5,1609.4,40.8]
[1745195215440,13.47669,1609.5,1609.4,40.8]
[1745195215745,10.26889,1609.5,1609.4,40.8]
[1745195216343,17.34083,1609.5,1608.7,3.2078]
[1745195216647,17.34083,1609.5,1608.6,6.058]
[1745195216648,1.24289,1609.3,1608.9,3.2078]
[1745195216839,1.7735,1609.2,1608.9,4.45096]
[1745195217034,1.7735,1609.2,1609.0,3.2078]
[1745195217248,5.2805,1609.2,1609.1,40.8]
[1745195217744,10.2805,1609.2,1609.1,40.8]
[1745195218143,1.24317,1609.0,1608.5,4.45127]
[1745195218344,2.0,1609.1,1608.6,0.83829328]
[1745195218642,1.7735,1609.0,1608.5,3.2078]
[1745195218852,1.24341,1608.6,1608.5,3.2078]
[1745195219140,14.37384,1608.9,1608.3,0.73441057]
[1745195219141,1.24357,1608.4,1608.3,0.73441057]
[1745195219541,1.24374,1608.2,1607.9,3.2078]
[1745195219745,2.90354,1608.3,1608.2,1.24346]
[1745195219948,4.56964,1608.3,1608.2,2.08729302]
[1745195220244,15.04144,1608.3,1608.2,42.04346]
[1745195220640,7.59,1608.3,1608.2,42.04346]
[1745195220837,6.21364,1609.5,1608.3,1.24358]
[1745195220838,1.24328,1608.8,1608.3,1.24358]
[1745195221037,3.2078,1609.1,1608.6,1.24339]
[1745195221233,6.058,1609.2,1608.7,2.08795704]
[1745195221234,2.264,1608.8,1608.7,2.08795704]
[1745195221445,0.9674,1609.5,1608.7,4.79271345]
[1745195221746,6.058,1609.6,1609.2,3.2078]
[1745195221944,1.24279,1609.4,1609.3,0.84462704]
[1745195222140,2.264,1609.4,1609.3,41.64462704]
[1745195222641,2.264,1609.4,1609.3,43.58188763]
[1745195222847,2.264,1609.4,1609.3,45.26480281]
[1745195223047,1.534,1609.4,1609.3,47.24768747]
[1745195223542,3.47406349,1610.1,1609.3,47.24768747]
[1745195223543,0.26626349,1610.1,1609.3,55.14555688]
[1745195223741,0.26626349,1610.1,1609.8,3.2078]
[1745195223946,1.50851349,1610.1,1610.0,3.2078]
[1745195224144,3.77251349,1610.1,1610.0,0.84474222]
[1745195224353,2.53026349,1610.1,1610.0,2.58603213]
[1745195224747,2.53026349,1610.1,1610.0,3.32624766]
[1745195224944,2.53026349,1610.1,1610.0,1.58495775]
[1745195225347,2.53026349,1610.1,1610.0,3.32650952]
[1745195225543,2.53026349,1610.1,1610.0,4.95320952]
[1745195225854,2.49988349,1610.1,1610.0,4.95320952]
[1745195226152,2.49988349,1610.1,1610.0,6.19553952]
[1745195226344,1.24179,1610.7,1610.2,1.24212]
[1745195226543,0.17012997,1610.9,1610.6,3.2078]
[1745195226744,1.24178,1610.8,1610.7,41.64391965]
[1745195227051,3.24178,1610.8,1610.7,41.64391965]
[1745195227346,1.24202,1610.4,1610.3,0.74021553]
[1745195227548,2.0,1610.5,1610.3,3.85418028]
[1745195227753,1.24202,1610.4,1610.3,3.2078]
[1745195228046,1.24216,1610.3,1610.1,3.2078]
[1745195228249,2.264,1610.4,1610.2,40.8]
[1745195228451,3.46544563,1611.2,1610.3,6.075]
[1745195228644,3.10381,1611.1,1610.4,3.2078]
[1745195228843,1.24194,1610.5,1610.3,3.85418028]
[1745195229145,11.4439,1610.5,1609.9,3.94492694]
[1745195229346,2.264,1610.5,1610.2,3.2078]
[1745195229854,1.24203,1610.4,1610.3,3.2078]
[1745195230149,2.264,1610.4,1610.0,5.55798028]
[1745195230345,3.50602,1610.4,1610.3,40.8]
[1745195230742,7.56216928,1610.4,1610.2,3.2078]
[1745195230956,1.24235,1610.0,1609.9,3.2078]
[1745195231146,3.50635,1610.0,1609.9,3.2078]
[1745195231341,1.24248,1609.8,1609.7,0.73681114]
[1745195231545,1.24287,1609.3,1609.2,3.2078]
[1745195231843,1.2431,1609.0,1608.9,8.27958976]
[1745195232048,10.82406928,1609.0,1608.9,8.27958976]
[1745195232243,0.29816928,1609.0,1608.9,49.07958976]
[1745195232448,0.29816928,1609.2,1608.9,54.72597004]
[1745195232651,0.29816928,1609.2,1609.1,3.2078]
[1745195232845,2.264,1609.3,1609.1,3.2078]
[1745195233045,2.264,1609.3,1609.2,1.6752]
[1745195233257,3.50687,1609.3,1609.2,42.4752]
[1745195233450,3.50687,1609.3,1609.2,40.8]
[1745195233647,14.58187,1609.3,1609.2,40.8]
[1745195233846,8.339,1609.3,1609.2,40.8]
[1745195234051,9.58187,1609.3,1609.2,40.8]
[1745195235057,1.65504959,1609.3,1609.2,40.8]
[1745195235245,3.91904959,1609.3,1609.2,40.8]
[1745195235446,2.264,1609.3,1609.2,41.44638028]
[1745195235646,6.37840997,1610.9,1609.2,53.5832]
[1745195235647,1.0013,1610.5,1609.2,53.5832]
[1745195235849,1.2422,1610.2,1610.0,3.2078]
[1745195236049,1.7303,1610.3,1610.0,3.2078]
[1745195236253,1.7303,1610.3,1610.2,3.2078]
[1745195236456,2.9724,1610.3,1610.2,3.2078]
[1745195237258,5.2364,1610.3,1610.2,3.2078]
[1745195237458,5.2364,1610.3,1609.7,7.31751]
[1745195237459,1.24221,1610.2,1609.8,1.7558]
[1745195237656,2.93981,1610.2,1610.1,3.2078]
[1745195237861,1.24233,1610.0,1609.9,3.2078]
[1745195238056,3.10631,1609.8,1609.3,3.2078]
[1745195238258,1.24279,1609.4,1609.3,3.2078]
[1745195238652,1.24303,1609.1,1609.0,3.2078]
[1745195239263,3.50703,1609.1,1609.0,3.2078]
[1745195240460,3.50703,1609.1,1609.0,40.8]
[1745195240852,5.27293,1609.1,1609.0,40.8]
[1745195241053,4.0299,1609.1,1609.0,40.8]
[1745195241256,4.2239,1610.3,1609.0,55.87339529]
[1745195241557,2.06406928,1610.1,1609.8,3.2078]
[1745195241760,3.00821,1610.1,1609.9,1.7159]
[1745195242263,5.27221,1610.1,1609.9,1.7159]
[1745195242558,3.2078,1610.0,1609.5,3.2078]
[1745195242750,0.29816928,1610.0,1609.6,3.99872805]
[1745195242955,2.264,1610.1,1610.0,1.24233]
[1745195243151,2.264,1610.1,1610.0,4.45013]
[1745195243356,1.41180997,1610.9,1610.4,1.24202]
[1745195243556,0.17012997,1610.9,1610.5,3.2078]
[1745195243756,1.24174,1610.8,1610.7,40.8]
[1745195243952,1.91552997,1610.9,1610.7,44.0078]
[1745195243953,0.17012997,1610.9,1610.7,44.0078]
[1745195244259,1.24171,1610.8,1610.7,40.8]
[1745195244562,2.43412997,1610.9,1610.7,49.0078]
[1745195244756,0.64212997,1610.9,1610.8,9.81596041]
[1745195244959,0.64212997,1610.9,1610.8,2.43622112]
[1745195245159,1.24187,1610.6,1610.5,3.2078]
[1745195245363,1.7454,1610.8,1610.5,44.0078]
[1745195245660,1.24187,1610.6,1610.5,44.0078]
[1745195245961,6.075,1610.6,1609.8,1.1078]
[1745195246167,0.29816928,1610.1,1609.5,3.2078]
[1745195246362,3.40380928,1610.1,1609.5,3.2078]
[1745195246556,3.40380928,1610.1,1608.8,11.17131384]
[1745195246557,3.2078,1609.7,1608.8,11.17131384]
[1745195246772,0.29816928,1609.9,1608.6,11.94527077]
[1745195246773,3.2078,1609.0,1608.6,153.40482705]
[1745195246963,4.45113,1608.7,1608.6,150.19702705]
[1745195247363,3.2078,1608.7,1608.6,150.19702705]
[1745195247665,5.4718,1609.0,1608.6,158.40482705]
[1745195247967,5.4718,1609.0,1608.6,153.40482705]
[1745195248164,4.45113,1608.7,1608.6,150.19702705]
[1745195248463,4.45113,1608.7,1608.6,139.19238817]
[1745195248464,11.08229928,1608.7,1608.6,139.19238817]
[1745195248661,16.08229928,1608.7,1608.6,134.68616817]
[1745195248865,16.08229928,1608.7,1608.6,131.20536817]
[1745195249058,15.06789928,1608.7,1608.6,131.20536817]
[1745195249264,15.06789928,1608.7,1608.6,129.65761817]
[1745195249265,19.76973,1608.7,1608.6,129.65761817]
[1745195249567,20.06789928,1608.7,1608.6,122.63225817]
[1745195249768,20.06789928,1608.7,1608.6,114.46771817]
[1745195250264,1.24361,1608.4,1608.0,1.6362]
[1745195250470,4.45154,1608.2,1607.8,9.59006844]
[1745195250662,1.6189,1608.1,1607.9,6.216]
[1745195250864,3.2078,1608.6,1608.0,40.8]
[1745195251163,3.2078,1608.2,1608.0,40.8]
[1745195251369,2.8627,1608.1,1608.0,40.8]
[1745195251867,1.91706928,1608.1,1608.0,40.8]
[1745195252166,5.1267,1608.1,1608.0,40.8]
[1745195252368,10.1267,1608.1,1608.0,40.8]
[1745195252668,1.24395,1607.9,1607.8,7.95386844]
[1745195252969,11.08591928,1607.9,1607.8,7.95386844]
[1745195253166,18.34991928,1607.9,1607.8,48.75386844]
[1745195253365,18.05175,1607.9,1607.8,48.75386844]
[1745195253564,18.34991928,1607.9,1607.8,47.30337844]
[1745195253974,18.05175,1607.9,1607.8,47.30337844]
[1745195254169,13.05175,1607.9,1607.8,47.30337844]
[1745195254474,13.05175,1607.9,1607.2,21.5348711]
[1745195254475,16.8078,1607.9,1607.0,3.2078]
[1745195254666,3.2078,1607.7,1607.0,4.858]
[1745195254975,1.7651,1607.6,1607.5,40.8]
[1745195255464,1.7651,1607.6,1607.5,47.016]
[1745195255666,9.5438,1607.9,1607.5,47.016]
[1745195255667,9.5438,1607.9,1607.5,56.46801]
[1745195255966,9.5438,1607.9,1607.6,7.9127]
[1745195256167,1.747,1608.0,1607.6,7.9127]
[1745195256364,3.2078,1608.2,1607.7,11.1205]
[1745195256570,6.19841,1608.4,1607.7,4.9045]
[1745195256770,4.9548,1608.4,1607.8,6.216]
[1745195256968,1.747,1608.4,1607.9,1.6967]
[1745195257165,1.747,1608.4,1608.0,1.24383]
[1745195257368,1.747,1608.4,1608.0,7.45983]
[1745195257670,3.2078,1608.6,1608.2,3.2078]
[1745195257872,0.9722,1609.3,1608.9,1.24312]
[1745195258066,1.747,1609.4,1609.0,3.2078]
[1745195258268,1.747,1609.4,1609.1,1.6967]
[1745195258470,3.2078,1609.7,1609.1,7.9127]
[1745195258665,3.2078,1609.7,1609.3,4.45064]
[1745195258970,6.36901,1609.9,1609.6,3.2078]
[1745195259175,2.264,1609.7,1609.4,9.32504]
[1745195259368,2.264,1609.7,1609.6,4.9511]
[1745195259564,2.264,1609.7,1609.6,45.7511]
[1745195259771,0.03001,1609.9,1609.6,56.9671]
[1745195259966,1.7391,1610.7,1610.2,1.24215]
[1745195260164,0.29816928,1610.6,1610.3,1.7433]
[1745195260362,3.2078,1610.6,1610.1,3.2078]
[1745195260569,1.24218,1610.2,1610.0,3.2078]
[1745195260870,1.24218,1610.2,1609.7,7.9593]
[1745195261066,1.7391,1610.1,1609.9,3.2078]
[1745195261275,1.7391,1610.1,1609.9,4.9511]
[1745195261469,2.9814,1610.1,1609.6,40.8]
[1745195261670,1.7391,1610.1,1609.7,7.9593]
[1745195262172,4.0031,1610.1,1609.8,6.216]
[1745195262372,4.0031,1610.1,1609.9,1.7558]
[1745195262572,4.0031,1610.1,1609.9,7.9718]
[1745195262871,6.336,1610.7,1610.1,1.24219]
[1745195262872,3.2078,1610.7,1610.1,1.24219]
[1745195263076,3.0162,1610.6,1610.2,1.7558]
[1745195263276,1.7743,1610.6,1610.2,1.7558]
[1745195263478,1.7743,1610.6,1610.3,6.216]
[1745195264076,3.2078,1610.5,1610.1,3.2078]
[1745195264278,1.24223,1610.2,1609.9,1.7558]
[1745195264572,1.7743,1610.1,1609.9,6.216]
[1745195264776,3.0166,1610.1,1609.7,1.7558]
[1745195264976,1.7743,1610.1,1609.7,7.9718]
[1745195265169,2.264,1610.1,1609.8,7.45847]
[1745195265368,2.264,1610.1,1609.8,6.216]
[1745195265569,2.264,1610.1,1609.7,6.21944]
[1745195265769,1.6661,1610.0,1609.8,6.216]
[1745195266269,3.9301,1610.0,1609.9,6.216]
[1745195266472,3.9301,1610.0,1609.8,6.216]
[1745195266670,2.264,1610.0,1609.8,6.216]
[1745195266877,2.264,1610.0,1609.9,7.9851]
[1745195267078,2.264,1610.0,1609.9,1.7691]
[1745195267377,2.264,1610.0,1609.9,7.9851]
[1745195267774,2.264,1610.0,1609.7,3.2078]
[1745195267978,1.6821,1609.9,1609.7,9.4238]
[1745195268279,7.45206928,1609.9,1609.6,40.8]
[1745195268469,7.45206928,1609.9,1609.6,47.016]
[1745195268776,3.9461,1609.9,1609.7,6.216]
[1745195268964,2.264,1609.9,1609.7,7.8846]
[1745195269171,2.264,1609.9,1609.8,6.216]
[1745195270171,3.50641,1609.9,1609.8,6.216]
[1745195270379,1.24248,1609.8,1609.6,40.8]
[1745195270574,2.92466,1609.7,1609.6,40.8]
[1745195270785,1.6821,1609.7,1609.6,47.016]
[1745195271078,2.264,1609.7,1609.6,52.016]
[1745195271274,2.264,1609.7,1609.6,56.46643]
[1745195271577,2.264,1609.7,1609.6,50.2238]
[1745195271782,2.264,1609.7,1609.6,58.17234]
[1745195272278,2.86058,1610.1,1609.6,56.9297]
[1745195272576,1.6183,1610.1,1609.8,3.2078]
[1745195272773,2.86058,1610.1,1609.9,1.7059]
[1745195272974,2.86058,1610.1,1609.9,7.9219]
[1745195273277,3.8823,1610.1,1610.0,47.016]
[1745195273578,2.264,1610.1,1610.0,47.016]
[1745195273775,3.10441,1610.8,1610.1,1.24222]
[1745195273776,3.2078,1610.8,1610.1,1.24222]
[1745195273971,1.24198,1610.5,1610.1,6.216]
[1745195274179,1.6733,1610.4,1610.2,6.216]
[1745195274375,2.264,1610.5,1610.2,6.216]
[1745195274376,2.264,1610.5,1610.3,1.2421]
[1745195274578,2.264,1610.5,1610.3,7.4581]
[1745195274779,0.50201,1610.5,1610.4,12.29912]
[1745195274980,2.9148,1611.1,1610.4,11.0571]
[1745195275279,1.6733,1611.1,1610.6,3.2078]
[1745195275577,0.25764563,1611.2,1611.1,1.24148]
[1745195275972,0.25764563,1611.2,1611.1,2.87478]
[1745195276173,0.25764563,1611.2,1611.1,43.67478]
[1745195276474,0.25764563,1611.2,1611.1,61.29778]
[1745195276981,0.22785618,1611.6,1611.5,1.24117]
[1745195277370,0.22785618,1611.6,1611.4,4.44904]
[1745195277569,0.22785618,1611.6,1611.5,15.62027]
[1745195277776,0.21538837,1612.0,1611.9,1.24087]
[1745195277974,3.2078,1612.3,1611.9,3.2078]
[1745195278177,3.2078,1612.3,1612.0,7.9721]
[1745195278374,0.19977348,1612.4,1612.1,3.2078]
[1745195278676,0.19977348,1612.4,1612.3,45.24836]
[1745195279071,0.26366642,1612.7,1612.3,55.2238]
[1745195279273,0.26366642,1612.7,1612.6,3.2078]
[1745195279478,1.2404,1612.5,1612.4,7.9721]
[1745195279677,3.47146642,1612.7,1612.4,7.9721]
[1745195279678,0.26366642,1612.7,1612.4,7.9721]
[1745195279882,0.26366642,1612.7,1612.6,44.0078]
[1745195280079,0.26366642,1612.7,1612.6,42.04033]
[1745195280378,0.26366642,1612.7,1612.6,51.9835]
[1745195280676,0.26366642,1612.7,1612.6,48.7757]
[1745195280877,0.26366642,1612.7,1612.6,53.7757]
[1745195281077,0.27224654,1613.1,1612.6,53.7757]
[1745195281078,0.27224654,1613.1,1613.0,1.24002]
[1745195281379,3.2078,1613.8,1613.2,1.23985]
[1745195281679,6.18552,1613.8,1613.4,40.8]
[1745195281869,4.9461,1613.8,1613.4,53.44371]
[1745195282074,1.7383,1613.8,1613.4,62.86751]
[1745195282276,0.2858099,1613.9,1613.4,56.65151]
[1745195282468,0.2858099,1613.9,1613.4,61.6278]
[1745195282673,0.2858099,1613.9,1613.7,3.2078]
[1745195282883,0.2858099,1613.9,1613.8,6.401]
[1745195283182,0.2858099,1613.9,1613.8,12.617]
[1745195283575,1.5251399,1613.9,1613.8,47.016]
[1745195283875,0.2858099,1613.9,1613.8,47.016]
[1745195284271,5.2858099,1613.9,1613.2,104.2398]
[1745195284482,3.2078,1613.6,1613.3,6.216]
[1745195284675,0.2858099,1613.9,1613.4,3.2078]
[1745195284874,3.2078,1613.8,1613.5,6.216]
[1745195285073,3.2078,1613.6,1613.3,9.4238]
[1745195285269,2.79746107,1613.4,1612.5,3.2078]
[1745195285469,3.2078,1613.1,1612.3,3.2078]
[1745195285673,2.96665,1613.0,1612.6,3.2078]
[1745195285878,1.24022,1612.8,1612.4,7.9412]
[1745195286079,1.24066,1612.2,1611.9,3.2078]
[1745195286276,1.24094,1611.8,1611.7,11.93080266]
[1745195286479,4.44874,1611.8,1611.7,11.93080266]
[1745195286783,4.44874,1611.8,1611.6,13.07054954]
[1745195286784,14.6068,1611.8,1611.6,13.07054954]
[1745195286976,14.90496928,1611.8,1610.8,14.80465621]
[1745195287172,98.77366,1612.4,1611.2,3.2078]
[1745195287173,0.29816928,1611.4,1611.2,3.2078]
[1745195287385,3.2078,1612.3,1611.4,3.2078]
[1745195287574,3.2078,1612.3,1611.8,3.2078]
[1745195287778,3.2078,1612.2,1611.5,9.8838]
[1745195287977,4.2882,1612.4,1611.9,1.24083]
[1745195288178,4.44847,1612.2,1612.0,1.7253]
[1745195288378,3.2078,1612.2,1611.5,3.2078]
[1745195288578,3.2078,1612.8,1612.1,3.2078]
[1745195288784,3.2078,1613.1,1612.5,3.2078]
[1745195288986,3.2078,1613.1,1612.2,1.7253]
[1745195288987,9.8848,1613.7,1612.9,3.2078]
[1745195289174,9.8848,1613.7,1613.0,1.7667]
[1745195289486,1.23974,1613.4,1613.0,7.9827]
[1745195289786,3.2078,1613.7,1613.1,9.4238]
[1745195290084,1.6487,1614.0,1613.4,1.23968]
[1745195290384,3.49952262,1614.1,1613.7,3.2078]
[1745195290684,3.49952262,1614.1,1613.5,1.7667]
[1745195290985,3.4936099,1613.9,1613.5,3.2078]
[1745195291184,1.6487,1613.8,1613.5,3.2078]
[1745195291386,1.6487,1613.8,1613.6,6.216]
[1745195291576,0.2858099,1613.9,1613.7,9.4238]
[1745195291782,0.2858099,1613.9,1613.7,19.10493]
[1745195291986,0.2858099,1613.9,1613.8,6.216]
[1745195292785,0.2858099,1613.9,1613.8,53.25541]
[1745195292984,3.2078,1614.8,1614.1,1.23917]
[1745195293285,3.43815894,1615.0,1614.5,3.2078]
[1745195293789,8.44255178,1614.6,1614.2,1.6135]
[1745195293984,1.7427,1614.5,1614.2,6.216]
[1745195294187,3.2078,1614.4,1613.3,3.2078]
[1745195294385,3.2078,1614.5,1614.3,40.8]
[1745195294579,0.23475178,1614.6,1614.3,40.8]